bitfinex-derivatives/quotes_BTCF0:USTF0_20251023
["timestamp","ask_amount","ask_price","bid_price","bid_amount"]
[1761229459011,0.30362675,109290.0,109280.0,0.01561]
[1761229459515,0.30362675,109290.0,109280.0,0.06176]
[1761229460619,0.0914829,109290.0,109280.0,0.06176]
[1761229461406,0.45672217,109310.0,109300.0,0.05876]
[1761229461407,0.0914661,109310.0,109300.0,0.05876]
[1761229462110,0.30360995,109310.0,109300.0,0.05876]
[1761229462718,0.0914497,109330.0,109300.0,0.05876]
[1761229462719,0.30359355,109330.0,109320.0,0.01288]
[1761229463021,0.30359355,109330.0,109320.0,0.05685]
[1761229463610,0.0914497,109330.0,109320.0,0.05685]
[1761229463816,0.30359355,109330.0,109320.0,0.05685]
[1761229464404,0.30459355,109330.0,109320.0,0.0641581]
[1761229465220,0.30459355,109330.0,109320.0,0.05685]
[1761229466113,0.0924497,109330.0,109320.0,0.05685]
[1761229466316,0.30459355,109330.0,109320.0,0.05685]
[1761229467721,0.30459355,109330.0,109320.0,0.1483077]
[1761229467922,0.001,109330.0,109320.0,0.15559903]
[1761229468116,0.0924494,109330.0,109320.0,0.15559903]
[1761229468322,0.0924494,109330.0,109320.0,0.25559903]
[1761229468622,0.0924494,109330.0,109320.0,0.15559903]
[1761229468820,0.0924494,109330.0,109320.0,0.06414133]
[1761229469523,0.0914494,109330.0,109320.0,0.06414133]
[1761229470222,0.30359325,109330.0,109320.0,0.06414133]
[1761229470423,0.30359325,109330.0,109320.0,0.06514133]
[1761229471217,0.0914494,109330.0,109320.0,0.06914133]
[1761229471526,0.0914494,109330.0,109300.0,0.03282367]
[1761229471527,0.0914661,109310.0,109300.0,0.03282367]
[1761229471717,0.0914828,109290.0,109280.0,0.06164915]
[1761229471915,0.4242428,109290.0,109280.0,0.03381]
[1761229472219,0.70362665,109290.0,109280.0,0.05633]
[1761229472418,1.03634665,109290.0,109280.0,0.05633]
[1761229472722,0.63634665,109290.0,109280.0,0.05633]
[1761229473316,0.63634665,109290.0,109280.0,0.01261]
[1761229473523,0.63634665,109290.0,109270.0,0.0215]
[1761229473524,0.0914912,109280.0,109270.0,0.0215]
[1761229473714,0.5157789,109280.0,109270.0,0.0003]
[1761229473918,0.9157789,109280.0,109270.0,0.0003]
[1761229474415,0.30363505,109280.0,109270.0,0.0003]
[1761229474622,0.5157789,109280.0,109270.0,0.0003]
[1761229474812,0.5157789,109280.0,109270.0,0.0023]
[1761229475819,0.0914912,109280.0,109270.0,0.0023]
[1761229476021,0.5157789,109280.0,109270.0,0.0023]
[1761229478426,0.9157789,109280.0,109270.0,0.0023]
[1761229478720,0.0914996,109270.0,109260.0,0.00457603]
[1761229478914,0.63604345,109270.0,109260.0,0.00457603]
[1761229479321,0.63604345,109270.0,109260.0,0.06214603]
[1761229479814,0.30364345,109270.0,109260.0,0.06214603]
[1761229480023,0.63620345,109270.0,109260.0,0.06214603]
[1761229480322,0.30364345,109270.0,109260.0,0.06214603]
[1761229480519,0.63620345,109270.0,109260.0,0.06214603]
[1761229480721,0.63620345,109270.0,109260.0,0.06514603]
[1761229482428,0.54470385,109270.0,109260.0,0.06514603]
[1761229482627,0.02988212,109310.0,109300.0,0.1053245]
[1761229482926,0.0962332,109350.0,109320.0,0.1490273]
[1761229482927,0.0962365,109350.0,109320.0,0.1490273]
[1761229483124,0.23912,109340.0,109330.0,0.0914494]
[1761229483326,0.23912,109340.0,109330.0,1.65262092]
[1761229483529,0.0962326,109350.0,109340.0,0.05757]
[1761229483822,0.338,109350.0,109340.0,0.05757]
[1761229484422,0.33796,109350.0,109340.0,0.05757]
[1761229484623,0.0048,109350.0,109340.0,0.05757]
[1761229484821,0.33788,109350.0,109340.0,0.05757]
[1761229485024,0.0048,109350.0,109340.0,0.05757]
[1761229485329,0.0914087,109380.0,109370.0,0.04372]
[1761229485545,0.4244087,109380.0,109370.0,0.04372]
[1761229486025,0.0962034,109390.0,109380.0,0.01385]
[1761229486228,0.0962034,109390.0,109380.0,0.05757]
[1761229486621,0.4298834,109390.0,109380.0,0.05757]
[1761229486818,0.4298834,109390.0,109380.0,0.03505]
[1761229487017,0.0914099,109380.0,109360.0,0.01385]
[1761229487221,0.33848,109390.0,109360.0,0.09757]
[1761229487222,0.33368,109370.0,109360.0,0.09757]
[1761229487531,0.33368,109370.0,109360.0,0.05757]
[1761229487733,0.4250959,109370.0,109360.0,0.05757]
[1761229488231,0.33368,109370.0,109360.0,0.05757]
[1761229488831,0.4250959,109370.0,109360.0,0.05757]
[1761229489023,0.4260959,109370.0,109360.0,0.05757]
[1761229491432,0.78116855,109370.0,109360.0,0.01385]
[1761229492032,0.78116855,109370.0,109360.0,0.03505]
[1761229492433,0.78116855,109370.0,109360.0,0.05757]
[1761229492628,0.4260959,109370.0,109360.0,0.05757]
[1761229492823,0.4257359,109370.0,109360.0,0.05757]
[1761229493133,0.4255759,109370.0,109360.0,0.05757]
[1761229493527,0.0924159,109370.0,109360.0,0.05757]
[1761229493728,0.4255759,109370.0,109360.0,0.05757]
[1761229493930,0.0924159,109370.0,109360.0,0.05757]
[1761229494135,0.4255759,109370.0,109360.0,0.05757]
[1761229495634,0.0924159,109370.0,109360.0,0.05757]
[1761229495839,0.4253359,109370.0,109360.0,0.05757]
[1761229496035,1.38443215,109390.0,109360.0,1.13264265]
[1761229496036,0.0914143,109380.0,109360.0,1.13264265]
[1761229496241,0.33296,109370.0,109360.0,0.60406675]
[1761229496434,0.33296,109370.0,109360.0,0.2489941]
[1761229496631,0.33296,109370.0,109360.0,0.10757]
[1761229497330,0.33296,109370.0,109360.0,0.1989943]
[1761229497533,0.0914143,109380.0,109360.0,0.05757]
[1761229497728,0.4242559,109370.0,109360.0,0.05757]
[1761229498636,0.4242559,109370.0,109360.0,0.03505]
[1761229498940,0.4252559,109370.0,109360.0,0.03505]
[1761229499330,0.4252559,109370.0,109360.0,0.05811]
[1761229499838,0.4252559,109370.0,109360.0,0.03505]
[1761229500037,0.4252559,109370.0,109360.0,0.01385]
[1761229500238,0.0914326,109350.0,109340.0,0.06011]
[1761229500439,0.77910525,109350.0,109340.0,0.01385]
[1761229500740,0.77910525,109350.0,109340.0,0.03705]
[1761229500938,0.4240726,109350.0,109340.0,0.06011]
[1761229501137,0.4240326,109350.0,109340.0,0.06011]
[1761229501340,0.0914295,109360.0,109340.0,0.2015506]
[1761229501529,0.0914212,109370.0,109360.0,0.05979]
[1761229501729,0.4240212,109370.0,109360.0,0.05979]
[1761229502332,0.0914075,109380.0,109360.0,0.6012143]
[1761229502537,0.33252,109370.0,109360.0,0.2012143]
[1761229502739,0.0914075,109380.0,109360.0,0.2012143]
[1761229503334,0.3326,109370.0,109360.0,0.2012143]
[1761229503537,0.33256,109370.0,109360.0,0.2012143]
[1761229503730,0.4239759,109370.0,109360.0,0.2012143]
[1761229503935,0.0914133,109380.0,109360.0,0.2012143]
[1761229504136,0.33252,109370.0,109360.0,0.2012143]
[1761229504332,0.0924133,109380.0,109360.0,0.2012143]
[1761229504534,0.33244,109370.0,109360.0,0.2012143]
[1761229504738,0.0914133,109380.0,109360.0,0.2012143]
[1761229504938,0.45127665,109390.0,109360.0,0.1512143]
[1761229505139,0.45127665,109390.0,109360.0,0.2012143]
[1761229505339,0.4237736,109380.0,109360.0,0.2012143]
[1761229505546,0.33236,109370.0,109360.0,0.2012143]
[1761229505744,0.4237759,109370.0,109360.0,0.16429614]
[1761229505945,0.33232,109370.0,109360.0,0.21429614]
[1761229506143,0.091413,109380.0,109360.0,0.45429614]
[1761229506343,0.091413,109380.0,109360.0,0.21429614]
[1761229506542,0.092413,109380.0,109360.0,0.21429614]
[1761229506744,0.092413,109380.0,109340.0,0.03820535]
[1761229506745,0.3487,109370.0,109340.0,0.03820535]
[1761229506950,0.46196525,109350.0,109340.0,0.01308988]
[1761229507144,0.46196525,109350.0,109330.0,0.00719194]
[1761229507145,0.091441,109340.0,109330.0,0.00719194]
[1761229507346,0.0991794,109330.0,109320.0,0.06011]
[1761229507652,0.4396694,109330.0,109320.0,0.06011]
[1761229508057,0.4396694,109330.0,109320.0,0.06763186]
[1761229508361,0.79474205,109330.0,109320.0,0.00752186]
[1761229508555,0.0914618,109320.0,109310.0,0.04626]
[1761229508950,0.1069218,109320.0,109310.0,0.04626]
[1761229509154,0.1069218,109320.0,109300.0,0.06565971]
[1761229509350,0.77928205,109330.0,109300.0,0.21266479]
[1761229509351,0.4240661,109310.0,109300.0,0.21266479]
[1761229509558,0.4317961,109310.0,109300.0,0.12119029]
[1761229509758,0.79459875,109310.0,109300.0,0.04245971]
[1761229509950,0.79459875,109310.0,109300.0,0.00457436]
[1761229510257,0.79459875,109310.0,109300.0,0.00757436]
[1761229510444,0.4395261,109310.0,109300.0,0.04430436]
[1761229510651,0.4395261,109310.0,109300.0,0.05192278]
[1761229510848,0.4395261,109310.0,109300.0,0.03072278]
[1761229511347,0.79459875,109310.0,109300.0,0.07698278]
[1761229511552,0.4395261,109310.0,109300.0,0.05392278]
[1761229511753,0.4395261,109310.0,109300.0,0.07698278]
[1761229512558,0.4395261,109310.0,109300.0,0.05392278]
[1761229513654,0.4395261,109310.0,109300.0,0.00957436]
[1761229513855,0.79459875,109310.0,109300.0,0.00957436]
[1761229515950,1.19459875,109310.0,109300.0,0.00957436]
[1761229517561,0.8395261,109310.0,109300.0,0.00957436]
[1761229517863,0.1069261,109310.0,109300.0,0.06936436]
[1761229518063,0.79395875,109310.0,109300.0,0.00957436]
[1761229518456,0.46199875,109310.0,109300.0,0.06936436]
[1761229518656,0.46199875,109310.0,109300.0,0.00957436]
[1761229518657,0.79395875,109310.0,109300.0,0.00957436]
[1761229520166,0.46199875,109310.0,109300.0,0.00957436]
[1761229520359,0.79395875,109310.0,109300.0,0.06936436]
[1761229520659,0.79395875,109310.0,109300.0,0.02310436]
[1761229520866,0.79395875,109310.0,109300.0,0.00957436]
[1761229521962,0.1069261,109310.0,109300.0,0.16083886]
[1761229522160,0.4308761,109310.0,109300.0,0.16083886]
[1761229522355,0.79367875,109310.0,109300.0,0.02310436]
[1761229522559,0.79367875,109310.0,109300.0,0.04630436]
[1761229522762,0.79367875,109310.0,109300.0,0.06936436]
[1761229522763,0.4386061,109310.0,109300.0,0.06936436]
[1761229523563,0.79367875,109310.0,109300.0,0.00957436]
[1761229525762,0.4386061,109310.0,109300.0,0.06660436]
[1761229525966,0.1069261,109310.0,109300.0,0.06660436]
[1761229526162,0.4383661,109310.0,109300.0,0.06660436]
[1761229526369,0.4306361,109310.0,109300.0,0.06660436]
[1761229526784,0.79343875,109310.0,109300.0,0.00957436]
[1761229527660,0.4383661,109310.0,109300.0,0.00957436]
[1761229527969,0.79343875,109310.0,109300.0,0.00957436]
[1761229528472,0.4383661,109310.0,109300.0,0.06660436]
[1761229528971,0.1069177,109320.0,109310.0,0.1354361]
[1761229529160,0.4313077,109320.0,109310.0,0.1354361]
[1761229529365,0.4235777,109320.0,109310.0,0.1354361]
[1761229529567,0.33212,109320.0,109310.0,0.1354361]
[1761229529967,0.4235777,109320.0,109310.0,0.1354361]
[1761229530167,0.4235777,109320.0,109310.0,0.1364361]
[1761229530672,0.4235777,109320.0,109310.0,0.1394361]
[1761229531463,0.33212,109320.0,109310.0,0.4194361]
[1761229531765,0.33212,109320.0,109310.0,0.04797]
[1761229531766,0.4390377,109320.0,109310.0,0.04797]
[1761229531966,0.4390377,109320.0,109310.0,0.09797]
[1761229532267,0.0914555,109330.0,109310.0,0.5894361]
[1761229532472,0.1069155,109330.0,109320.0,0.05703]
[1761229532667,0.4386755,109330.0,109320.0,0.09703]
[1761229532869,0.1069155,109330.0,109320.0,0.05703]
[1761229533171,0.4386755,109330.0,109320.0,0.10703]
[1761229533365,0.4386755,109330.0,109320.0,0.05703]
[1761229533765,0.4386755,109330.0,109320.0,0.05903]
[1761229534677,0.1069067,109340.0,109320.0,0.1504877]
[1761229534973,0.4230094,109330.0,109320.0,0.45484305]
[1761229535166,0.1069029,109340.0,109320.0,0.48731363]
[1761229535372,0.4230829,109340.0,109330.0,0.04397]
[1761229535567,0.4385429,109340.0,109330.0,0.04397]
[1761229536167,0.4385429,109340.0,109330.0,0.06832535]
[1761229536367,0.4385429,109340.0,109330.0,0.04600535]
[1761229536566,0.4385429,109340.0,109330.0,0.06832535]
[1761229536967,0.4385429,109340.0,109330.0,0.06932535]
[1761229538171,0.4385429,109340.0,109330.0,0.21077475]
[1761229538377,0.423081,109340.0,109330.0,0.21077475]
[1761229538568,0.423081,109340.0,109330.0,0.19324533]
[1761229538763,0.423081,109340.0,109330.0,0.23324533]
[1761229538969,0.430811,109340.0,109330.0,0.24324533]
[1761229539379,0.00773,109360.0,109340.0,0.1261505]
[1761229539579,0.1068919,109360.0,109350.0,0.04397]
[1761229539872,0.4382119,109360.0,109350.0,0.04397]
[1761229540280,0.1068919,109360.0,109350.0,0.04397]
[1761229540576,0.4381719,109360.0,109350.0,0.04397]
[1761229540975,0.1068926,109350.0,109340.0,0.11385593]
[1761229541203,0.1068926,109350.0,109340.0,0.13138535]
[1761229541379,0.1068926,109350.0,109340.0,0.22282635]
[1761229541679,0.1068926,109350.0,109340.0,0.13138535]
[1761229541873,0.1068926,109350.0,109340.0,0.22282635]
[1761229542264,0.0914326,109350.0,109340.0,0.46282635]
[1761229542469,0.001,109360.0,109350.0,0.04397]
[1761229542671,0.44853061,109380.0,109370.0,0.04397]
[1761229542975,0.77957061,109380.0,109370.0,0.04397]
[1761229543978,0.78057061,109380.0,109370.0,0.04397]
[1761229544376,0.56891161,109380.0,109370.0,0.04397]
[1761229544573,0.78057061,109380.0,109370.0,0.04397]
[1761229544775,0.1068759,109370.0,109360.0,0.05703]
[1761229545478,0.0914243,109360.0,109350.0,0.05391023]
[1761229545670,0.3185433,109360.0,109350.0,0.07623023]
[1761229546075,0.1068843,109360.0,109350.0,0.12623023]
[1761229546580,0.1068843,109360.0,109350.0,0.07623023]
[1761229547883,0.3185433,109360.0,109350.0,0.00769633]
[1761229548079,0.1068926,109350.0,109340.0,0.0815939]
[1761229548281,0.3185516,109350.0,109340.0,0.0815939]
[1761229548781,0.1068926,109350.0,109340.0,0.1730349]
[1761229548978,0.0924248,109360.0,109340.0,0.5030349]
[1761229549179,0.1078848,109360.0,109350.0,0.0245639]
[1761229549486,0.00873,109360.0,109350.0,0.4699665]
[1761229549676,0.0924243,109360.0,109350.0,0.2099665]
[1761229549987,0.1078843,109360.0,109350.0,0.12617189]
[1761229550182,0.1068843,109360.0,109350.0,0.14304059]
[1761229550506,0.1068843,109360.0,109350.0,0.09160799]
[1761229550788,0.1068843,109360.0,109350.0,0.10160799]
[1761229551178,0.1078843,109360.0,109350.0,0.10160799]
[1761229552389,0.1078843,109360.0,109350.0,0.05160799]
[1761229552786,0.3195433,109360.0,109350.0,0.00763799]
[1761229552983,0.1123843,109360.0,109350.0,0.09427]
[1761229553179,0.1123843,109360.0,109350.0,0.04427]
[1761229553380,0.1123843,109360.0,109350.0,0.09427]
[1761229553576,0.1123843,109360.0,109350.0,0.04427]
[1761229553793,0.1123843,109360.0,109350.0,0.08427]
[1761229554089,0.1123843,109360.0,109350.0,0.1857026]
[1761229554287,0.1123843,109360.0,109350.0,0.10198718]
[1761229554487,0.1123843,109360.0,109350.0,0.05198718]
[1761229556189,0.1123843,109360.0,109350.0,0.07655108]
[1761229556780,0.1123843,109360.0,109350.0,0.10198718]
[1761229557183,0.1123843,109360.0,109350.0,0.07655108]
[1761229557589,0.3240433,109360.0,109350.0,0.07655108]
[1761229557783,0.3240433,109360.0,109350.0,0.03228108]
[1761229558092,0.1123843,109360.0,109350.0,0.07655108]
[1761229559193,0.3240433,109360.0,109350.0,0.05461108]
[1761229559792,0.3240433,109360.0,109350.0,0.07655108]
[1761229560993,0.1123843,109360.0,109350.0,0.07655108]
[1761229562000,0.3240433,109360.0,109350.0,0.07655108]
[1761229564184,0.3240433,109360.0,109350.0,0.10902166]
[1761229564693,0.1123843,109360.0,109350.0,0.13349691]
[1761229564994,0.1123843,109360.0,109350.0,0.08445776]
[1761229565185,0.1123843,109360.0,109350.0,0.17589036]
[1761229565993,0.0969243,109360.0,109350.0,0.17789036]
[1761229566198,0.0969243,109360.0,109350.0,0.22692951]
[1761229566199,0.0959243,109360.0,109350.0,0.22692951]
[1761229566589,0.0959243,109360.0,109350.0,0.22492951]
[1761229566788,0.0959243,109360.0,109350.0,0.22692951]
[1761229566995,0.0959243,109360.0,109350.0,0.27692951]
[1761229567184,0.1036543,109360.0,109350.0,0.39692951]
[1761229567389,0.0045,109360.0,109350.0,0.60858851]
[1761229567593,0.0991455,109380.0,109360.0,0.0914207]
[1761229567797,0.4377555,109380.0,109370.0,0.06891553]
[1761229567996,0.4377555,109380.0,109370.0,0.16033143]
[1761229568296,0.13614927,109390.0,109380.0,0.05773]
[1761229568495,0.34780827,109390.0,109380.0,0.06043716]
[1761229568794,0.34780827,109390.0,109380.0,0.08237716]
[1761229569295,0.34780827,109390.0,109380.0,0.13237716]
[1761229569992,0.3233192,109390.0,109380.0,0.13237716]
[1761229570201,0.1126602,109390.0,109380.0,0.30664547]
[1761229570394,0.1126592,109390.0,109380.0,0.53664547]
[1761229570589,0.1126592,109390.0,109380.0,0.50664547]
[1761229570795,0.1126592,109390.0,109380.0,0.48199831]
[1761229570992,0.1126592,109390.0,109380.0,0.69365731]
[1761229570993,0.0058,109390.0,109380.0,0.69365731]
[1761229571300,0.0971992,109390.0,109380.0,0.50662838]
[1761229571806,0.0058,109390.0,109380.0,0.69365731]
[1761229571995,0.08619891,109410.0,109400.0,0.05773]
[1761229572296,0.1068342,109420.0,109410.0,0.04427]
[1761229572498,0.01546,109420.0,109410.0,0.1356525]
[1761229572684,0.01546,109420.0,109410.0,0.2256525]
[1761229572889,0.01546,109420.0,109410.0,0.49025359]
[1761229573085,0.4424704,109430.0,109420.0,0.01346]
[1761229573289,0.4424704,109430.0,109420.0,0.05773]
[1761229573290,0.4424658,109430.0,109420.0,0.05773]
[1761229573485,0.0048,109430.0,109420.0,0.1491041]
[1761229573691,0.1068123,109450.0,109440.0,0.05773]
[1761229573892,0.1068123,109450.0,109440.0,0.03579]
[1761229574091,0.1068258,109430.0,109420.0,0.38853]
[1761229574397,0.3184848,109430.0,109420.0,0.05773]
[1761229574700,0.1068258,109430.0,109420.0,0.05773]
[1761229575293,0.01546,109430.0,109420.0,0.1491042]
[1761229575494,0.001,109430.0,109420.0,0.1991042]
[1761229575699,0.01746,109430.0,109420.0,0.1491042]
[1761229575896,0.00973,109430.0,109420.0,0.4491042]
[1761229576096,0.002,109430.0,109420.0,0.68536429]
[1761229576292,0.4221549,109450.0,109440.0,0.05773]
[1761229576293,0.34626,109450.0,109440.0,0.05773]
[1761229576498,0.4298791,109450.0,109440.0,0.05773]
[1761229576798,0.0990791,109450.0,109440.0,0.05773]
[1761229576996,0.6385553,109470.0,109440.0,0.1490875]
[1761229576997,0.0913439,109460.0,109440.0,0.1490875]
[1761229577201,0.1068039,109460.0,109440.0,0.6707465]
[1761229577515,0.0913455,109460.0,109440.0,0.4590875]
[1761229577694,0.1068008,109460.0,109450.0,0.04427]
[1761229577996,0.1068008,109460.0,109450.0,0.30427]
[1761229578202,0.1068008,109460.0,109450.0,0.7263791]
[1761229578494,0.4423548,109470.0,109460.0,0.05773]
[1761229579893,0.4468548,109470.0,109460.0,0.05773]
[1761229581197,0.4468548,109470.0,109460.0,0.4490707]
[1761229581395,0.4391248,109470.0,109460.0,0.4490707]
[1761229581596,0.01703,109470.0,109460.0,0.4490707]
[1761229582100,0.0093,109470.0,109460.0,0.4490707]
[1761229582394,0.0093,109470.0,109460.0,0.35773]
[1761229582594,0.1093623,109470.0,109460.0,0.35773]
[1761229582796,0.1170923,109470.0,109460.0,0.4490707]
[1761229582990,0.1170923,109470.0,109460.0,0.35773]
[1761229583195,0.1093623,109470.0,109460.0,0.4490707]
[1761229583401,0.0103,109470.0,109460.0,0.4490707]
[1761229583592,0.0103,109470.0,109460.0,0.6607297]
[1761229583990,0.0103,109470.0,109460.0,1.0607297]
[1761229585095,0.0103,109470.0,109460.0,0.75773]
[1761229585403,0.0103,109470.0,109460.0,0.92386644]
[1761229585592,0.0093,109470.0,109460.0,0.92386644]
[1761229585812,0.0103,109470.0,109460.0,0.92386644]
[1761229586001,0.0103,109470.0,109460.0,1.13552544]
[1761229588804,0.01010714,109470.0,109460.0,1.13552544]
[1761229589202,0.02556714,109470.0,109460.0,0.43252574]
[1761229589409,0.11689944,109470.0,109460.0,0.43829]
[1761229589807,0.11689944,109470.0,109460.0,0.70829]
[1761229590208,0.11689944,109470.0,109460.0,0.43829]
[1761229590408,0.11689944,109470.0,109460.0,0.43929]
[1761229590808,0.11689944,109470.0,109460.0,0.10873]
[1761229591104,0.32855844,109470.0,109460.0,0.01446]
[1761229591312,0.32855844,109470.0,109460.0,0.001]
[1761229591602,0.65907844,109470.0,109460.0,0.001]
[1761229592306,1.05907844,109470.0,109460.0,0.001]
[1761229592502,0.106821,109440.0,109430.0,0.02122]
[1761229592703,0.01546,109440.0,109430.0,0.4151857]
[1761229592903,0.1068174,109440.0,109430.0,0.15382]
[1761229593299,0.1068174,109440.0,109430.0,0.35382]
[1761229593499,0.1068174,109440.0,109430.0,0.33382]
[1761229593704,0.1068174,109440.0,109430.0,0.04582]
[1761229594004,0.0990764,109460.0,109440.0,0.01305]
[1761229594196,0.0990713,109460.0,109440.0,0.588529]
[1761229594400,0.0990713,109460.0,109440.0,0.6798862]
[1761229594707,0.1068013,109460.0,109440.0,0.4682272]
[1761229594908,0.1068013,109460.0,109440.0,0.7987072]
[1761229595909,0.0990713,109460.0,109440.0,0.7997072]
[1761229596802,0.1068013,109460.0,109440.0,0.7997072]
[1761229596996,0.091349,109450.0,109440.0,0.38835]
[1761229597211,0.318468,109450.0,109440.0,0.4797073]
[1761229597403,0.318468,109450.0,109440.0,0.03665]
[1761229597595,0.318468,109450.0,109440.0,0.05787]
[1761229597800,0.07525998,109470.0,109440.0,0.34787]
[1761229598005,0.01546,109470.0,109460.0,0.05687]
[1761229598208,0.1067923,109470.0,109460.0,0.05687]
[1761229598403,0.1067923,109470.0,109460.0,0.1482107]
[1761229598912,0.1067875,109480.0,109460.0,0.4082107]
[1761229599109,0.001,109470.0,109460.0,0.4082107]
[1761229599301,0.001,109470.0,109460.0,0.6198697]
[1761229600202,0.001,109470.0,109460.0,0.4082107]
[1761229600506,0.001,109470.0,109460.0,0.43281179]
[1761229600708,0.0913268,109480.0,109470.0,0.1351523]
[1761229600902,0.0913268,109480.0,109470.0,0.1851523]
[1761229601704,0.4372617,109490.0,109480.0,0.01305]
[1761229601894,0.4372617,109490.0,109480.0,0.05687]
[1761229603604,0.1067676,109500.0,109490.0,0.04382]
[1761229603804,0.1067676,109500.0,109490.0,0.09382]
[1761229604000,0.1067676,109500.0,109490.0,0.04382]
[1761229604405,0.3184266,109500.0,109490.0,0.04382]
[1761229604607,0.1067676,109500.0,109490.0,0.04382]
[1761229604809,0.1077676,109500.0,109490.0,0.04382]
[1761229605309,0.1077676,109500.0,109490.0,0.05392805]
[1761229605811,0.1077676,109500.0,109490.0,0.07852914]
[1761229606000,0.46176269,109500.0,109490.0,0.07852914]
[1761229606204,0.86176269,109500.0,109490.0,0.002]
[1761229606404,0.86176269,109500.0,109490.0,0.01002781]
[1761229606721,0.86076269,109500.0,109490.0,0.01002781]
[1761229607099,0.86076269,109500.0,109490.0,0.002]
[1761229607304,0.1067756,109490.0,109480.0,0.0682177]
[1761229607506,0.4371756,109490.0,109480.0,0.1807617]
[1761229608206,0.1067756,109490.0,109480.0,0.1807617]
[1761229608406,0.4371756,109490.0,109480.0,0.1807617]
[1761229608606,0.4371756,109490.0,109480.0,0.0914377]
[1761229608811,0.4371756,109490.0,109480.0,0.1827616]
[1761229609010,0.4371756,109490.0,109480.0,0.15816051]
[1761229609222,0.4217156,109490.0,109480.0,0.15816051]
[1761229609412,0.13126227,109500.0,109480.0,0.43816051]
[1761229609719,0.4371732,109500.0,109490.0,0.1351356]
[1761229609914,0.4371732,109500.0,109490.0,0.04382]
[1761229610214,0.1067756,109490.0,109480.0,0.04561661]
[1761229610414,0.1067756,109490.0,109480.0,0.15816061]
[1761229610614,0.1067756,109490.0,109480.0,0.4727617]
[1761229610814,0.1067756,109490.0,109480.0,0.4717617]
[1761229611215,0.01546,109490.0,109480.0,0.4717617]
[1761229611417,0.1067757,109490.0,109480.0,0.4707617]
[1761229611618,0.1067757,109490.0,109480.0,0.4717617]
[1761229611917,0.437171,109500.0,109480.0,0.3804377]
[1761229612112,0.4371673,109500.0,109490.0,0.1351357]
[1761229612308,0.01546,109500.0,109490.0,0.4651357]
[1761229612514,0.4419638,109510.0,109500.0,0.05687]
[1761229613421,0.46645287,109510.0,109500.0,0.05687]
[1761229613617,0.4419638,109510.0,109500.0,0.1481773]
[1761229613812,0.4419638,109510.0,109500.0,0.4181773]
[1761229614418,0.4419638,109510.0,109500.0,0.4191773]
[1761229614714,0.01253,109510.0,109500.0,0.4191773]
[1761229614909,0.0048,109510.0,109500.0,0.44377839]
[1761229615114,0.0048,109510.0,109500.0,0.77413839]
[1761229615419,0.0048,109510.0,109500.0,1.12813348]
[1761229615624,0.0048,109510.0,109500.0,0.77413839]
[1761229616213,0.096099,109510.0,109500.0,0.22377839]
[1761229616414,0.0048,109510.0,109500.0,0.82413839]
[1761229618120,0.0048,109510.0,109500.0,0.82409839]
[1761229618323,0.0048,109510.0,109500.0,1.57809348]
[1761229618622,0.0990181,109530.0,109520.0,0.05806]
[1761229618822,0.1067481,109530.0,109520.0,0.05806]
[1761229619220,0.01546,109530.0,109520.0,0.65838]
[1761229619417,0.0990123,109530.0,109520.0,0.64838]
[1761229619819,0.1000123,109530.0,109520.0,0.38838]
[1761229620516,0.0922823,109530.0,109520.0,0.38838]
[1761229620717,0.1000123,109530.0,109520.0,0.4796706]
[1761229620913,0.1077423,109530.0,109520.0,0.38838]
[1761229621321,0.0912958,109520.0,109510.0,0.4661487]
[1761229621516,0.1067558,109520.0,109510.0,0.04453]
[1761229621721,0.1067558,109520.0,109510.0,0.37481]
[1761229622022,0.1067558,109520.0,109510.0,0.466109]
[1761229622223,0.091299,109510.0,109490.0,0.0789495]
[1761229622420,0.091299,109510.0,109490.0,0.04453]
[1761229622421,0.46076239,109500.0,109490.0,0.04453]
[1761229622728,0.46076239,109500.0,109480.0,0.06554661]
[1761229622729,0.1067757,109490.0,109480.0,0.06554661]
[1761229622921,0.46077079,109490.0,109480.0,0.06554661]
[1761229623116,0.46077079,109490.0,109480.0,0.02101661]
[1761229623321,0.86077079,109490.0,109480.0,0.00796661]
[1761229623522,0.1067923,109470.0,109460.0,0.15348837]
[1761229623722,0.1067923,109470.0,109460.0,0.06214767]
[1761229624347,0.1067923,109470.0,109460.0,0.08674876]
[1761229625247,0.1067923,109470.0,109460.0,0.09487987]
[1761229626037,0.46078739,109470.0,109460.0,0.05134987]
[1761229626248,0.46078739,109470.0,109460.0,0.02674878]
[1761229626448,0.79106739,109470.0,109460.0,0.02674878]
[1761229626644,0.79106739,109470.0,109460.0,0.01369878]
[1761229626948,0.79106739,109470.0,109460.0,0.01769878]
[1761229627143,1.19106739,109470.0,109460.0,0.01769878]
[1761229628043,1.19106739,109470.0,109460.0,0.00956767]
[1761229628440,0.091349,109450.0,109440.0,0.00800817]
[1761229628750,0.79112409,109450.0,109440.0,0.00800817]
[1761229628951,0.437129,109450.0,109440.0,0.04304817]
[1761229629151,0.437129,109450.0,109440.0,0.06606817]
[1761229629849,0.099079,109450.0,109440.0,0.16142557]
[1761229630043,0.091349,109450.0,109440.0,0.25142557]
[1761229630237,0.4371262,109460.0,109440.0,0.48142557]
[1761229630447,0.091349,109450.0,109440.0,0.49142557]
[1761229630751,0.106809,109450.0,109440.0,0.08006817]
[1761229631044,0.46080409,109450.0,109440.0,0.05704817]
[1761229631252,0.86080409,109450.0,109440.0,0.03553817]
[1761229631445,0.86080409,109450.0,109440.0,0.03253817]
[1761229631646,0.506809,109450.0,109440.0,0.07706817]
[1761229631841,0.106809,109450.0,109440.0,0.07706817]
[1761229632037,0.099079,109450.0,109440.0,0.16842557]
[1761229632241,0.106809,109450.0,109440.0,0.07706817]
[1761229632644,0.106809,109450.0,109440.0,0.07606817]
[1761229632843,0.00773,109450.0,109440.0,0.50742557]
[1761229633045,0.34578,109460.0,109440.0,0.07606817]
[1761229633245,0.107809,109450.0,109440.0,0.07806817]
[1761229633447,0.107809,109450.0,109440.0,0.07906817]
[1761229633642,0.107809,109450.0,109440.0,0.12906817]
[1761229634042,0.107809,109450.0,109440.0,0.17042547]
[1761229634243,0.100079,109450.0,109440.0,0.12806817]
[1761229634448,0.107809,109450.0,109440.0,0.12806817]
[1761229634646,0.107809,109450.0,109440.0,0.07806817]
[1761229635053,0.107809,109450.0,109440.0,0.12806817]
[1761229635252,0.107809,109450.0,109440.0,0.07806817]
[1761229635446,0.100079,109450.0,109440.0,0.21942557]
[1761229635645,0.100079,109450.0,109440.0,0.07806817]
[1761229635646,0.107809,109450.0,109440.0,0.07806817]
[1761229635854,0.107809,109450.0,109440.0,0.12906817]
[1761229636054,0.001,109450.0,109440.0,0.17042557]